[Event "I.A Hrvatska šahovska liga"]
[Site "Veli Lošinj, Croatia"]
[Date "2024.10.05"]
[Round "1.24"]
[White "Medancic, Rikard"]
[Black "Rogulj, Branko"]
[Result "0-1"]
[TimeControl "90 30 40 30"]
[WhiteFideId "14500531"]
[BlackFideId "14500213"]
[WhiteElo "2121"]
[BlackElo "2294"]

1. Nf3 {[%clk 01:30:50]} {[%emt 00:00:10]} Nf6 {[%clk 01:30:34]} {[%emt
00:00:25]} 2. g3 {[%emt 00:00:08]} c5 {[%emt 00:00:44]} 3. c4 {[%emt 00:01:12]}
d5 {[%emt 00:01:40]} 4. Bg2 {[%emt 00:01:19]} d4 {[%emt 00:00:43]} 5. b4 {[%clk
01:24:33]} {[%emt 00:01:01]} cxb4 {[%clk 01:27:24]} {[%emt 00:03:40]} 6. a3
{[%emt 00:02:00]} b3 7. Qxb3 {[%clk 01:15:40]} {[%emt 00:08:45]} Nc6 {[%clk
01:27:15]} {[%emt 00:00:17]} 8. O-O {[%emt 00:00:35]} e5 {[%emt 00:00:52]} 9.
d3 {[%clk 01:14:06]} {[%emt 00:00:38]} Nd7 {[%clk 01:27:18]} {[%emt 00:00:27]}
10. Re1 {[%clk 00:43:56]} {[%emt 00:30:41]} Nc5 {[%clk 01:24:07]} {[%emt
00:03:40]} 11. Qc2 {[%clk 00:43:32]} Be7 {[%clk 01:22:25]} {[%emt 00:03:05]} 12.
Nbd2 {[%clk 00:41:29]} Bf5 {[%clk 01:20:03]} {[%emt 00:05:26]} 13. Nb3 {[%emt
00:02:15]} Ne6 {[%clk 01:15:51]} {[%emt 00:04:25]} 14. Bb2 {[%clk 00:34:58]}
{[%emt 00:05:33]} O-O {[%clk 01:13:57]} {[%emt 00:02:23]} 15. e3 {[%clk
00:33:25]} {[%emt 00:02:04]} Bf6 {[%clk 01:11:18]} {[%emt 00:03:09]} 16. exd4
{[%clk 00:33:07]} {[%emt 00:00:48]} exd4 {[%clk 01:11:07]} {[%emt 00:00:40]} 17.
Nfd2 {[%clk 00:32:28]} {[%emt 00:01:10]} Rc8 {[%clk 01:07:54]} {[%emt
00:03:43]} 18. Ne4 {[%clk 00:31:17]} {[%emt 00:01:42]} Be7 {[%clk 01:07:16]}
{[%emt 00:01:07]} 19. Qd1 {[%clk 00:28:46]} {[%emt 00:03:01]} Qd7 {[%clk
00:53:49]} {[%emt 00:13:57]} 20. f4 {[%clk 00:27:14]} {[%emt 00:02:02]} Bg6
{[%clk 00:50:57]} {[%emt 00:03:22]} 21. Qf3 {[%clk 00:25:51]} {[%emt 00:01:54]}
f5 {[%clk 00:43:14]} {[%emt 00:08:12]} 22. Ned2 {[%clk 00:25:55]} {[%emt
00:00:26]} Nc7 {[%clk 00:42:40]} {[%emt 00:01:03]} 23. Qf2 {[%clk 00:21:57]}
{[%emt 00:04:28]} Rfd8 {[%clk 00:39:50]} {[%emt 00:03:20]} 24. Nf3 {[%clk
00:21:11]} {[%emt 00:01:16]} Ne6 {[%clk 00:28:43]} {[%emt 00:11:37]} 25. Ne5
{[%clk 00:19:25]} {[%emt 00:02:17]} Nxe5 {[%clk 00:28:22]} {[%emt 00:00:51]} 26.
Rxe5 {[%clk 00:19:49]} {[%emt 00:00:06]} Bf6 {[%clk 00:28:22]} {[%emt
00:00:30]} 27. Rd5 {[%clk 00:16:26]} {[%emt 00:03:53]} Qa4 {[%clk 00:27:05]}
{[%emt 00:01:47]} 28. Na5 {[%clk 00:15:07]} {[%emt 00:01:49]} b6 {[%clk
00:20:34]} {[%emt 00:07:00]} 29. Re1 {[%clk 00:09:31]} {[%emt 00:06:06]} Nc5
{[%clk 00:19:26]} {[%emt 00:01:38]} 30. Rxd8+ {[%clk 00:05:08]} {[%emt
00:04:55]} Rxd8 {[%clk 00:19:32]} {[%emt 00:00:22]} 31. Nc6 {[%clk 00:05:32]}
{[%emt 00:00:07]} Nxd3 {[%clk 00:19:22]} {[%emt 00:00:40]} 32. Qe2 {[%clk
00:05:25]} {[%emt 00:00:37]} Re8 {[%clk 00:18:47]} {[%emt 00:01:04]} 33. Bd5+
{[%clk 00:02:56]} {[%emt 00:02:59]} Kf8 {[%clk 00:18:24]} {[%emt 00:00:53]} 34.
Ne5 {[%clk 00:03:17]} {[%emt 00:00:10]} Nxe1 {[%clk 00:16:58]} {[%emt
00:01:55]} 35. Qxe1 {[%clk 00:03:31]} {[%emt 00:00:16]} Bxe5 {[%clk 00:15:08]}
{[%emt 00:02:19]} 36. fxe5 {[%clk 00:03:55]} {[%emt 00:00:07]} d3 {[%clk
00:15:00]} {[%emt 00:00:39]} 37. Bc3 {[%clk 00:01:58]} {[%emt 00:02:26]} a5
{[%clk 00:13:35]} {[%emt 00:01:55]} 38. e6 {[%clk 00:01:38]} {[%emt 00:00:52]}
Qxa3 {[%clk 00:11:00]} {[%emt 00:03:04]} 39. Bxg7+ {[%clk 00:01:12]} {[%emt
00:00:56]} Kxg7 {[%clk 00:10:16]} {[%emt 00:01:13]} 40. Qe5+ {[%clk 00:01:38]}
{[%emt 00:00:05]} Kg8 {[%emt 00:00:35]} 41. e7+ Bf7 42. Bxf7+ Kxf7 43. Qxf5+
Kxe7 44. Qe5+ Kd7 45. Qb5+ Kc7 {[%clk 00:10:10]} 46. Qe5+ {[%clk 00:02:04]}
{[%emt 00:00:40]} Kd7 {[%clk 00:41:46]} {[%emt 00:00:29]} 47. Qb5+ {[%clk
00:33:11]} {[%emt 00:00:13]} Kc7 {[%clk 00:40:26]} {[%emt 00:01:49]} 0-1

[Event "I.A Hrvatska šahovska liga"]
[Site "Veli Lošinj, Croatia"]
[Date "2024.10.05"]
[Round "1.25"]
[White "Aczel, Gergely"]
[Black "Saric, Ivan"]
[Result "0-1"]
[TimeControl "90 30 40 30"]
[WhiteFideId "727709"]
[BlackFideId "14508150"]
[WhiteElo "2460"]
[BlackElo "2673"]

1. d4 {[%clk 01:30:59]} {[%emt 00:00:01]} Nf6 {[%clk 01:29:22]} {[%emt
00:01:38]} 2. c4 {[%clk 01:31:24]} {[%emt 00:00:05]} g6 {[%clk 01:29:44]}
{[%emt 00:00:08]} 3. g3 {[%clk 01:31:48]} {[%emt 00:00:05]} Bg7 {[%clk
01:30:02]} {[%emt 00:00:12]} 4. Bg2 {[%clk 01:32:12]} {[%emt 00:00:05]} O-O
{[%clk 01:29:48]} {[%emt 00:00:45]} 5. Nc3 {[%clk 01:32:34]} {[%emt 00:00:08]}
Nc6 {[%clk 01:30:13]} {[%emt 00:00:05]} 6. e3 {[%clk 01:30:42]} {[%emt
00:02:22]} d6 {[%clk 01:28:57]} {[%emt 00:01:47]} 7. Nge2 {[%clk 01:30:22]}
{[%emt 00:00:50]} e5 {[%clk 01:24:18]} {[%emt 00:05:08]} 8. d5 {[%clk
01:28:02]} {[%emt 00:02:50]} Na5 {[%clk 01:24:08]} {[%emt 00:00:41]} 9. b3
{[%clk 01:23:58]} {[%emt 00:04:33]} a6 {[%clk 01:24:10]} {[%emt 00:00:28]} 10.
Bd2 {[%clk 01:23:10]} {[%emt 00:01:17]} Bd7 {[%clk 01:22:03]} {[%emt 00:02:38]}
11. Rc1 {[%clk 01:20:18]} {[%emt 00:03:22]} b5 {[%clk 01:19:12]} {[%emt
00:03:22]} 12. O-O {[%clk 01:13:16]} {[%emt 00:07:31]} bxc4 {[%clk 01:12:44]}
{[%emt 00:06:58]} 13. Ne4 {[%clk 01:13:09]} {[%emt 00:00:37]} Nb7 {[%clk
01:04:00]} {[%emt 00:09:15]} 14. Nxf6+ {[%clk 01:13:29]} {[%emt 00:00:09]} Qxf6
{[%clk 01:01:38]} {[%emt 00:02:53]} 15. Rxc4 {[%clk 01:13:32]} {[%emt
00:00:27]} Rfc8 {[%clk 01:02:05]} {[%emt 00:00:03]} 16. Qc2 {[%clk 00:52:40]}
{[%emt 00:21:22]} Bb5 {[%clk 01:00:14]} {[%emt 00:02:21]} 17. Rxc7 {[%clk
00:47:10]} {[%emt 00:06:00]} Rxc7 {[%clk 00:47:27]} {[%emt 00:13:17]} 18. Qxc7
{[%clk 00:47:31]} {[%emt 00:00:08]} Nc5 {[%clk 00:47:55]} {[%emt 00:00:02]} 19.
b4 {[%clk 00:25:24]} {[%emt 00:22:37]} Bxe2 {[%clk 00:41:15]} {[%emt 00:07:09]}
20. Re1 {[%clk 00:25:32]} {[%emt 00:00:22]} Bd3 {[%clk 00:39:07]} {[%emt
00:02:38]} 21. bxc5 {[%clk 00:25:50]} {[%emt 00:00:12]} dxc5 {[%clk 00:39:35]}
{[%emt 00:00:03]} 22. Qxc5 {[%clk 00:10:29]} {[%emt 00:15:51]} e4 {[%clk
00:39:51]} {[%emt 00:00:13]} 23. Rc1 {[%clk 00:09:31]} {[%emt 00:01:28]} Rb8
{[%clk 00:34:21]} {[%emt 00:06:00]} 24. Bc3 {[%clk 00:07:09]} {[%emt 00:02:52]}
Qb6 {[%clk 00:32:34]} {[%emt 00:02:18]} 25. Qxb6 {[%clk 00:07:30]} {[%emt
00:00:09]} Rxb6 {[%clk 00:33:00]} {[%emt 00:00:03]} 26. Ba5 {[%clk 00:06:11]}
{[%emt 00:01:50]} Rb5 {[%clk 00:31:47]} {[%emt 00:01:42]} 27. d6 {[%clk
00:06:18]} {[%emt 00:00:23]} Bf6 {[%clk 00:31:52]} {[%emt 00:00:25]} 28. Bc7
{[%clk 00:06:16]} {[%emt 00:00:32]} Rd5 {[%clk 00:29:09]} {[%emt 00:03:14]} 29.
f3 {[%clk 00:05:39]} {[%emt 00:01:06]} Bg5 {[%clk 00:26:45]} {[%emt 00:02:54]}
30. f4 {[%clk 00:02:44]} {[%emt 00:03:26]} Bh6 {[%clk 00:26:59]} {[%emt
00:00:16]} 31. Bh3 {[%clk 00:02:03]} {[%emt 00:01:10]} Bb5 {[%clk 00:22:51]}
{[%emt 00:04:38]} 32. Bf1 {[%clk 00:01:56]} {[%emt 00:00:37]} Bf8 {[%clk
00:22:26]} {[%emt 00:00:54]} 33. Bxb5 {[%clk 00:00:54]} {[%emt 00:01:34]} axb5
{[%clk 00:22:52]} {[%emt 00:00:04]} 34. Rc6 {[%clk 00:01:19]} {[%emt 00:00:04]}
f5 {[%clk 00:22:55]} {[%emt 00:00:27]} 35. Rb6 {[%clk 00:00:46]} {[%emt
00:01:04]} Kf7 {[%clk 00:23:12]} {[%emt 00:00:12]} 36. Kf2 {[%clk 00:00:42]}
{[%emt 00:00:34]} Ke6 {[%clk 00:22:57]} {[%emt 00:00:45]} 37. Ke2 {[%clk
00:01:06]} {[%emt 00:00:07]} Bg7 {[%clk 00:16:39]} {[%emt 00:06:47]} 38. Rb8
{[%clk 00:01:01]} {[%emt 00:00:35]} Bc3 {[%clk 00:17:03]} {[%emt 00:00:05]} 39.
Re8+ {[%clk 00:01:08]} {[%emt 00:00:23]} Kd7 {[%clk 00:17:27]} {[%emt
00:00:07]} 40. Re7+ {[%clk 00:31:13]} {[%emt 00:00:25]} Kc6 {[%clk 00:47:54]}
{[%emt 00:00:04]} 41. Bb8 {[%clk 00:21:33]} {[%emt 00:10:09]} Rd2+ {[%clk
00:45:42]} {[%emt 00:02:42]} 42. Kf1 {[%clk 00:21:58]} {[%emt 00:00:05]} Ba5
{[%clk 00:46:09]} {[%emt 00:00:04]} 43. Bc7 {[%clk 00:10:54]} {[%emt 00:11:33]}
Bb4 {[%clk 00:29:13]} {[%emt 00:17:26]} 44. Rxh7 {[%clk 00:11:10]} {[%emt
00:00:15]} Rxa2 {[%clk 00:29:36]} {[%emt 00:00:07]} 45. Rg7 {[%clk 00:11:35]}
{[%emt 00:00:04]} Bc3 {[%clk 00:28:43]} {[%emt 00:01:23]} 46. Rg8 {[%clk
00:11:57]} {[%emt 00:00:08]} b4 {[%clk 00:28:27]} {[%emt 00:00:46]} 47. Rb8
{[%clk 00:07:09]} {[%emt 00:05:17]} Rxh2 {[%clk 00:24:57]} {[%emt 00:04:01]} 48.
Ba5 {[%clk 00:04:55]} {[%emt 00:02:44]} Rb2 {[%clk 00:22:40]} {[%emt 00:02:46]}
49. Rb6+ {[%clk 00:05:08]} {[%emt 00:00:18]} Kd7 {[%clk 00:23:05]} {[%emt
00:00:05]} 50. Kg1 {[%clk 00:05:22]} {[%emt 00:00:16]} Bd2 {[%clk 00:22:12]}
{[%emt 00:01:23]} 51. Kf1 {[%clk 00:05:38]} {[%emt 00:00:14]} Ke6 {[%clk
00:11:08]} {[%emt 00:11:35]} 52. Ke2 {[%clk 00:04:04]} {[%emt 00:02:03]} Bc1+
{[%clk 00:11:33]} {[%emt 00:00:05]} 53. Kf1 {[%clk 00:03:55]} {[%emt 00:00:39]}
Bxe3 {[%clk 00:07:48]} {[%emt 00:04:15]} 54. Rxb4 {[%clk 00:04:24]} {[%emt
00:00:01]} Rxb4 {[%clk 00:03:51]} {[%emt 00:04:28]} 55. Bxb4 {[%clk 00:04:52]}
{[%emt 00:00:01]} Ba7 {[%clk 00:04:16]} {[%emt 00:00:05]} 56. Kg2 {[%clk
00:00:37]} {[%emt 00:04:45]} Bb8 {[%clk 00:04:41]} {[%emt 00:00:06]} 57. g4
{[%clk 00:00:40]} {[%emt 00:00:26]} Bxd6 {[%clk 00:02:08]} {[%emt 00:03:03]} 58.
gxf5+ {[%clk 00:01:09]} {[%emt 00:00:01]} gxf5 {[%clk 00:02:33]} {[%emt
00:00:05]} 59. Bd2 {[%clk 00:01:36]} {[%emt 00:00:03]} Bc5 {[%clk 00:02:35]}
{[%emt 00:00:28]} 60. Ba5 {[%clk 00:01:50]} {[%emt 00:00:16]} Kd5 {[%clk
00:02:56]} {[%emt 00:00:09]} 61. Kf1 {[%clk 00:02:04]} {[%emt 00:00:16]} Bd6
{[%clk 00:02:29]} {[%emt 00:00:58]} 62. Bd2 {[%clk 00:02:31]} {[%emt 00:00:02]}
Kd4 {[%clk 00:01:33]} {[%emt 00:01:27]} 63. Ke2 {[%clk 00:02:57]} {[%emt
00:00:04]} Kc4 {[%clk 00:01:53]} {[%emt 00:00:10]} 64. Be3 {[%clk 00:01:40]}
{[%emt 00:01:46]} Kc3 {[%clk 00:02:11]} {[%emt 00:00:12]} 65. Bd2+ {[%clk
00:02:04]} {[%emt 00:00:06]} Kc2 {[%clk 00:02:36]} {[%emt 00:00:05]} 66. Be3
{[%clk 00:02:28]} {[%emt 00:00:06]} Bc7 {[%clk 00:02:47]} {[%emt 00:00:20]} 67.
Bd2 {[%clk 00:02:52]} {[%emt 00:00:06]} Bb8 {[%clk 00:03:08]} {[%emt 00:00:08]}
68. Be3 {[%clk 00:03:19]} {[%emt 00:00:02]} Bd6 {[%clk 00:03:33]} {[%emt
00:00:05]} 69. Bd2 {[%clk 00:03:45]} {[%emt 00:00:05]} Ba3 {[%clk 00:02:23]}
{[%emt 00:01:41]} 70. Ba5 {[%clk 00:04:08]} {[%emt 00:00:06]} Bc1 {[%clk
00:02:47]} {[%emt 00:00:06]} 71. Bc7 {[%clk 00:04:34]} {[%emt 00:00:03]} Kc3
{[%clk 00:02:31]} {[%emt 00:00:46]} 72. Kd1 {[%clk 00:03:50]} {[%emt 00:01:14]}
Be3 {[%clk 00:02:44]} {[%emt 00:00:17]} 73. Ke2 {[%clk 00:04:17]} {[%emt
00:00:04]} Bd4 {[%clk 00:03:10]} {[%emt 00:00:04]} 74. Ba5+ {[%clk 00:04:31]}
{[%emt 00:00:15]} Kc4 {[%clk 00:03:37]} {[%emt 00:00:04]} 75. Bd2 {[%clk
00:04:45]} {[%emt 00:00:15]} Kd5 {[%clk 00:04:04]} {[%emt 00:00:04]} 76. Bc1
{[%clk 00:03:36]} {[%emt 00:01:40]} Ke6 {[%clk 00:04:19]} {[%emt 00:00:14]} 77.
Bd2 {[%clk 00:03:40]} {[%emt 00:00:26]} Kf6 {[%clk 00:04:31]} {[%emt 00:00:18]}
78. Kf1 {[%clk 00:04:08]} {[%emt 00:00:02]} Kg6 {[%clk 00:04:55]} {[%emt
00:00:06]} 79. Kg2 {[%clk 00:04:34]} {[%emt 00:00:04]} Kh5 {[%clk 00:05:20]}
{[%emt 00:00:04]} 80. Kg3 {[%clk 00:04:06]} {[%emt 00:00:59]} Bf6 {[%clk
00:03:22]} {[%emt 00:02:28]} 81. Be3 {[%clk 00:03:23]} {[%emt 00:01:12]} Bc3
{[%clk 00:03:41]} {[%emt 00:00:11]} 82. Kh3 {[%clk 00:03:17]} {[%emt 00:00:37]}
Be1 {[%clk 00:04:06]} {[%emt 00:00:05]} 83. Bb6 {[%clk 00:03:28]} {[%emt
00:00:19]} Bd2 {[%clk 00:03:57]} {[%emt 00:00:40]} 84. Kg3 {[%clk 00:03:52]}
{[%emt 00:00:05]} Kg6 {[%clk 00:04:23]} {[%emt 00:00:04]} 85. Bc5 {[%clk
00:02:27]} {[%emt 00:01:55]} Kf6 {[%clk 00:04:44]} {[%emt 00:00:09]} 86. Bb6
{[%clk 00:02:50]} {[%emt 00:00:07]} Ke6 {[%clk 00:05:10]} {[%emt 00:00:04]} 87.
Bc7 {[%clk 00:03:09]} {[%emt 00:00:11]} Bb4 {[%clk 00:04:56]} {[%emt 00:00:44]}
88. Bb6 {[%clk 00:03:28]} {[%emt 00:00:10]} Kd5 {[%clk 00:05:24]} {[%emt
00:00:03]} 89. Kh4 {[%clk 00:00:33]} {[%emt 00:03:25]} Bc5 {[%clk 00:05:31]}
{[%emt 00:00:22]} 90. Ba5 {[%clk 00:00:57]} {[%emt 00:00:06]} e3 {[%clk
00:05:24]} {[%emt 00:00:38]} 91. Kg5 {[%clk 00:01:08]} {[%emt 00:00:19]} Ke4
{[%clk 00:05:49]} 0-1

[Event "I.A Hrvatska šahovska liga"]
[Site "Veli Lošinj, Croatia"]
[Date "2024.10.05"]
[Round "1.26"]
[White "Kollars, Dmitrij"]
[Black "Medvegy, Zoltan"]
[Result "1-0"]
[TimeControl "90 30 40 30"]
[WhiteFideId "12909572"]
[BlackFideId "708402"]
[WhiteElo "2659"]
[BlackElo "2507"]

1. e4 {[%clk 01:30:42]} {[%emt 00:00:15]} e5 {[%clk 01:30:54]} {[%emt
00:00:08]} 2. Nf3 {[%clk 01:31:06]} {[%emt 00:00:06]} Nf6 {[%clk 01:31:16]}
{[%emt 00:00:08]} 3. d4 {[%clk 01:30:15]} {[%emt 00:01:21]} Nxe4 {[%clk
01:31:36]} {[%emt 00:00:11]} 4. Bd3 {[%clk 01:30:24]} {[%emt 00:00:21]} d5
{[%clk 01:31:49]} {[%emt 00:00:16]} 5. Nxe5 {[%clk 01:30:17]} {[%emt 00:00:37]}
Nd7 {[%clk 01:31:54]} {[%emt 00:00:26]} 6. O-O {[%clk 01:28:47]} {[%emt
00:01:59]} Nxe5 {[%clk 01:29:57]} {[%emt 00:02:27]} 7. dxe5 {[%clk 01:29:12]}
{[%emt 00:00:05]} Nc5 {[%clk 01:30:10]} {[%emt 00:00:17]} 8. Be3 {[%clk
01:28:49]} {[%emt 00:00:53]} c6 {[%clk 01:28:39]} {[%emt 00:02:02]} 9. f4
{[%clk 01:26:46]} {[%emt 00:02:33]} Nxd3 {[%clk 01:27:00]} {[%emt 00:02:09]} 10.
Qxd3 {[%clk 01:27:09]} {[%emt 00:00:06]} g6 {[%clk 01:27:19]} {[%emt 00:00:11]}
11. Nd2 {[%clk 01:22:33]} {[%emt 00:05:05]} Bf5 {[%clk 01:17:00]} {[%emt
00:10:50]} 12. Qb3 {[%clk 01:17:25]} {[%emt 00:05:37]} b6 {[%clk 01:11:43]}
{[%emt 00:05:48]} 13. Nf3 {[%clk 01:07:13]} {[%emt 00:10:42]} c5 {[%clk
00:51:54]} {[%emt 00:20:20]} 14. Rad1 {[%clk 01:02:34]} {[%emt 00:05:08]} Be6
{[%clk 00:51:54]} {[%emt 00:00:30]} 15. Qb5+ {[%clk 00:58:02]} {[%emt
00:05:01]} Qd7 {[%clk 00:50:42]} {[%emt 00:01:43]} 16. Qe2 {[%clk 00:58:08]}
{[%emt 00:00:23]} Be7 {[%clk 00:41:09]} {[%emt 00:10:04]} 17. c3 {[%clk
00:55:16]} {[%emt 00:03:22]} O-O {[%clk 00:37:44]} {[%emt 00:03:55]} 18. Bf2
{[%clk 00:50:27]} {[%emt 00:05:19]} Rae8 {[%clk 00:25:35]} {[%emt 00:12:40]} 19.
b3 {[%clk 00:45:13]} {[%emt 00:05:43]} f6 {[%clk 00:17:37]} {[%emt 00:08:28]}
20. Bh4 {[%clk 00:39:53]} {[%emt 00:05:49]} Bg4 {[%clk 00:16:09]} {[%emt
00:01:59]} 21. Bg3 {[%clk 00:34:06]} {[%emt 00:06:17]} fxe5 {[%clk 00:14:15]}
{[%emt 00:02:24]} 22. fxe5 {[%clk 00:32:36]} {[%emt 00:01:59]} Qe6 {[%clk
00:13:02]} {[%emt 00:01:43]} 23. h3 {[%clk 00:30:53]} {[%emt 00:02:14]} Bxf3
{[%clk 00:09:54]} {[%emt 00:03:38]} 24. Rxf3 {[%clk 00:31:18]} {[%emt
00:00:05]} Rxf3 {[%clk 00:10:18]} {[%emt 00:00:06]} 25. Qxf3 {[%clk 00:31:45]}
{[%emt 00:00:03]} Rd8 {[%clk 00:10:35]} {[%emt 00:00:13]} 26. Kh1 {[%clk
00:29:48]} {[%emt 00:02:26]} Rd7 {[%clk 00:09:49]} {[%emt 00:01:17]} 27. Rf1
{[%clk 00:23:50]} {[%emt 00:06:28]} Rd8 {[%clk 00:09:56]} {[%emt 00:00:23]} 28.
Qd3 {[%clk 00:23:40]} {[%emt 00:00:40]} a5 {[%clk 00:04:58]} {[%emt 00:05:28]}
29. Qa6 {[%clk 00:22:13]} {[%emt 00:01:57]} d4 {[%clk 00:00:54]} {[%emt
00:04:33]} 30. cxd4 {[%clk 00:22:37]} {[%emt 00:00:06]} cxd4 {[%clk 00:01:18]}
{[%emt 00:00:06]} 31. Qd3 {[%clk 00:22:47]} {[%emt 00:00:20]} Qd5 {[%clk
00:00:51]} {[%emt 00:00:57]} 32. Rf4 {[%clk 00:19:52]} {[%emt 00:03:26]} Bc5
{[%clk 00:00:32]} {[%emt 00:00:49]} 33. Bh4 {[%clk 00:19:10]} {[%emt 00:01:12]}
Qxe5 {[%clk 00:00:34]} {[%emt 00:00:28]} 34. Re4 {[%clk 00:18:31]} {[%emt
00:01:09]} Qd5 {[%clk 00:00:33]} {[%emt 00:00:31]} 35. Bxd8 {[%clk 00:17:50]}
{[%emt 00:01:11]} Qxd8 {[%clk 00:01:01]} {[%emt 00:00:02]} 36. a3 {[%clk
00:18:14]} {[%emt 00:00:06]} Qf8 {[%clk 00:00:34]} {[%emt 00:00:57]} 37. b4
{[%clk 00:15:59]} {[%emt 00:02:45]} axb4 {[%clk 00:00:55]} {[%emt 00:00:09]} 38.
axb4 {[%clk 00:16:25]} {[%emt 00:00:03]} Bxb4 {[%clk 00:01:04]} {[%emt
00:00:21]} 39. Qc4+ {[%clk 00:16:36]} {[%emt 00:00:19]} 1-0

[Event "I.A Hrvatska šahovska liga"]
[Site "Veli Lošinj, Croatia"]
[Date "2024.10.05"]
[Round "1.27"]
[White "Bilobrk, Franjo"]
[Black "Christiansen, Johan-Sebastian"]
[Result "0-1"]
[TimeControl "90 30 40 30"]
[WhiteFideId "14500574"]
[BlackFideId "1512668"]
[WhiteElo "2329"]
[BlackElo "2661"]

1. d4 {[%clk 01:31:00]} {[%emt 02:41:52]} Nf6 {[%clk 01:30:46]} {[%emt
00:00:13]} 2. Nf3 {[%clk 01:31:22]} {[%emt 00:00:08]} d5 {[%clk 01:30:49]}
{[%emt 00:00:27]} 3. c4 {[%clk 01:31:43]} {[%emt 00:00:08]} e6 {[%clk
01:31:07]} {[%emt 00:00:13]} 4. e3 {[%clk 01:31:38]} {[%emt 00:00:35]} b6
{[%clk 01:25:09]} {[%emt 00:06:28]} 5. Nc3 {[%clk 01:31:40]} {[%emt 00:00:27]}
a6 {[%clk 01:23:10]} {[%emt 00:02:30]} 6. a3 {[%clk 01:30:36]} {[%emt
00:01:34]} Bb7 {[%clk 01:22:31]} {[%emt 00:01:09]} 7. b4 {[%clk 01:30:24]}
{[%emt 00:00:43]} c5 {[%clk 01:12:03]} {[%emt 00:10:57]} 8. Rb1 {[%clk
01:25:40]} {[%emt 00:05:13]} cxb4 {[%clk 01:02:39]} {[%emt 00:09:55]} 9. axb4
{[%clk 01:25:27]} {[%emt 00:00:43]} dxc4 {[%clk 01:01:22]} {[%emt 00:01:46]} 10.
Bxc4 {[%clk 01:25:32]} {[%emt 00:00:25]} Qc7 {[%clk 00:50:25]} {[%emt
00:11:28]} 11. Qb3 {[%clk 01:22:14]} {[%emt 00:03:47]} Nc6 {[%clk 00:41:32]}
{[%emt 00:09:24]} 12. Na2 {[%clk 01:21:32]} {[%emt 00:01:11]} Bd6 {[%clk
00:40:00]} {[%emt 00:02:02]} 13. Bd3 {[%clk 01:18:51]} {[%emt 00:03:09]} e5
{[%clk 00:35:22]} {[%emt 00:05:10]} 14. d5 {[%clk 01:16:57]} {[%emt 00:02:24]}
Nxd5 {[%clk 00:30:02]} {[%emt 00:05:50]} 15. Qxd5 {[%clk 01:17:07]} {[%emt
00:00:20]} Nxb4 {[%clk 00:30:10]} {[%emt 00:00:23]} 16. Qc4 {[%clk 01:11:22]}
{[%emt 00:06:14]} Nxd3+ {[%clk 00:30:21]} {[%emt 00:00:20]} 17. Qxd3 {[%clk
01:11:37]} {[%emt 00:00:15]} e4 {[%clk 00:30:44]} {[%emt 00:00:06]} 18. Qd4
{[%clk 00:57:52]} {[%emt 00:14:15]} exf3 {[%clk 00:31:06]} {[%emt 00:00:08]} 19.
g3 {[%clk 00:53:10]} {[%emt 00:05:12]} Be5 {[%clk 00:26:04]} {[%emt 00:05:32]}
20. Qa4+ {[%clk 00:46:33]} {[%emt 00:07:07]} b5 {[%clk 00:25:04]} {[%emt
00:01:30]} 21. Qb3 {[%clk 00:46:40]} {[%emt 00:00:23]} Be4 {[%clk 00:24:09]}
{[%emt 00:01:26]} 22. Rb2 {[%clk 00:45:35]} {[%emt 00:01:36]} Bxb2 {[%clk
00:23:49]} {[%emt 00:00:49]} 23. Bxb2 {[%clk 00:45:45]} {[%emt 00:00:19]} O-O
{[%clk 00:22:35]} {[%emt 00:01:43]} 24. O-O {[%clk 00:44:46]} {[%emt 00:01:31]}
Qd7 {[%clk 00:21:49]} {[%emt 00:01:16]} 25. Qc3 {[%clk 00:44:17]} {[%emt
00:00:59]} f6 {[%clk 00:22:03]} {[%emt 00:00:15]} 26. Kh1 {[%clk 00:44:44]}
{[%emt 00:00:03]} Rac8 {[%clk 00:21:13]} {[%emt 00:01:21]} 27. Qb3+ {[%clk
00:35:47]} {[%emt 00:09:26]} Bd5 {[%clk 00:21:41]} {[%emt 00:00:03]} 28. Qd1
{[%clk 00:35:54]} {[%emt 00:00:23]} Rfd8 {[%clk 00:22:03]} {[%emt 00:00:08]} 29.
Qa1 {[%clk 00:34:46]} {[%emt 00:01:38]} Rc2 {[%clk 00:21:45]} {[%emt 00:00:47]}
30. g4 {[%clk 00:32:58]} {[%emt 00:02:18]} Bc4 {[%clk 00:22:00]} {[%emt
00:00:15]} 31. Rg1 {[%clk 00:33:00]} {[%emt 00:00:28]} Rxf2 {[%clk 00:22:10]}
{[%emt 00:00:20]} 32. Bxf6 {[%clk 00:33:07]} {[%emt 00:00:24]} Rxa2 {[%clk
00:22:25]} {[%emt 00:00:15]} 0-1

[Event "I.A Hrvatska šahovska liga"]
[Site "Veli Lošinj, Croatia"]
[Date "2024.10.05"]
[Round "1.28"]
[White "Plenca, Jadranko"]
[Black "Rezan, Sasa"]
[Result "1/2-1/2"]
[TimeControl "90 30 40 30"]
[WhiteFideId "14527146"]
[BlackFideId "14504804"]
[WhiteElo "2445"]
[BlackElo "2389"]

1. e4 {[%clk 01:30:56]} {[%emt 00:00:03]} c5 {[%clk 01:30:56]} {[%emt
00:00:05]} 2. Nf3 {[%clk 01:31:22]} {[%emt 00:00:05]} g6 {[%clk 01:31:20]}
{[%emt 00:00:06]} 3. d4 {[%clk 01:29:51]} {[%emt 00:02:00]} cxd4 {[%clk
01:31:23]} {[%emt 00:00:28]} 4. Qxd4 {[%clk 01:30:08]} {[%emt 00:00:12]} Nf6
{[%clk 01:31:47]} {[%emt 00:00:06]} 5. Nc3 {[%clk 01:29:35]} {[%emt 00:01:03]}
Nc6 {[%clk 01:31:50]} {[%emt 00:00:27]} 6. Qa4 {[%clk 01:29:46]} {[%emt
00:00:18]} d6 {[%clk 01:32:04]} {[%emt 00:00:17]} 7. e5 {[%clk 01:30:12]}
{[%emt 00:00:05]} dxe5 {[%clk 01:32:26]} {[%emt 00:00:08]} 8. Nxe5 {[%clk
01:30:37]} {[%emt 00:00:04]} Bg7 {[%clk 01:32:42]} {[%emt 00:00:14]} 9. Bb5
{[%clk 01:28:57]} {[%emt 00:02:10]} O-O {[%clk 01:32:56]} {[%emt 00:00:16]} 10.
Nxc6 {[%clk 01:29:16]} {[%emt 00:00:11]} bxc6 {[%clk 01:33:18]} {[%emt
00:00:09]} 11. Bxc6 {[%clk 01:29:42]} {[%emt 00:00:04]} Rb8 {[%clk 01:33:07]}
{[%emt 00:00:40]} 12. O-O {[%clk 01:27:32]} {[%emt 00:02:41]} Qc7 {[%clk
01:32:12]} {[%emt 00:01:24]} 13. Re1 {[%clk 01:15:25]} {[%emt 00:12:38]} Rb6
{[%clk 01:30:46]} {[%emt 00:01:55]} 14. Bf3 {[%clk 01:07:19]} {[%emt 00:08:36]}
Bb7 {[%clk 01:30:21]} {[%emt 00:00:54]} 15. Bf4 {[%clk 01:02:08]} {[%emt
00:05:42]} Qc8 {[%clk 01:30:30]} {[%emt 00:00:21]} 16. Bxb7 {[%clk 00:55:10]}
{[%emt 00:07:28]} Qxb7 {[%clk 01:30:49]} {[%emt 00:00:11]} 17. Qa3 {[%clk
00:53:05]} {[%emt 00:02:35]} Rb4 {[%clk 01:30:50]} {[%emt 00:00:29]} 18. Be5
{[%clk 00:48:03]} {[%emt 00:05:32]} 1/2-1/2